bitfinex/quotes_BTCUSD_20250814
["timestamp","ask_amount","ask_price","bid_price","bid_amount"]
[1755179276560,0.19032136,118380.0,118360.0,0.326536]
[1755179276765,0.18832136,118380.0,118370.0,0.16896173]
[1755179276931,0.18932103,118380.0,118370.0,0.16896173]
[1755179277091,0.01714358,118380.0,118370.0,0.16896173]
[1755179277299,0.00148052,118380.0,118370.0,0.25480498]
[1755179277708,0.00248052,118380.0,118370.0,0.25480498]
[1755179277942,0.00248052,118380.0,118370.0,0.16896173]
[1755179278155,0.00148052,118380.0,118370.0,0.16896173]
[1755179278374,0.00148052,118380.0,118370.0,0.25480498]
[1755179278554,0.00348052,118380.0,118370.0,0.25480498]
[1755179279040,0.00248052,118380.0,118370.0,0.25480498]
[1755179279267,0.00248052,118380.0,118370.0,0.25168498]
[1755179279483,0.00448052,118380.0,118370.0,0.25168498]
[1755179279700,0.00448052,118380.0,118370.0,0.16896173]
[1755179280802,0.00448052,118380.0,118370.0,0.17208173]
[1755179281014,0.00448052,118380.0,118370.0,0.25480498]
[1755179281458,0.00448052,118380.0,118370.0,0.25168498]
[1755179281669,0.00448052,118380.0,118370.0,0.25480498]
[1755179282099,0.00448052,118380.0,118370.0,0.28014198]
[1755179282328,0.00448052,118380.0,118370.0,0.19429873]
[1755179282568,0.00448052,118380.0,118370.0,0.32644173]
[1755179283074,0.00771052,118380.0,118370.0,0.36539191]
[1755179284458,0.00448052,118380.0,118370.0,0.36539191]
[1755179285154,0.00448052,118380.0,118370.0,0.44811516]
[1755179285401,0.00448052,118380.0,118370.0,0.45123516]
[1755179285616,0.00448052,118380.0,118370.0,1.44065967]
[1755179285860,0.00448052,118380.0,118370.0,0.79123516]
[1755179286327,0.00448052,118380.0,118370.0,1.44065967]
[1755179286800,0.00248052,118380.0,118370.0,0.79123516]
[1755179287065,0.00248052,118380.0,118370.0,0.79115516]
[1755179287298,0.0156037,118420.0,118410.0,0.16890465]
[1755179287548,0.01508434,118430.0,118420.0,0.16889039]
[1755179287794,0.23362267,118440.0,118420.0,0.16889039]
[1755179288050,0.0749,118430.0,118420.0,0.17201039]
[1755179288292,0.0749,118430.0,118420.0,0.16889039]
[1755179288540,0.0749,118430.0,118420.0,0.16897267]
[1755179288975,0.09206915,118430.0,118420.0,0.16897267]
[1755179289219,0.0769,118430.0,118420.0,0.16897267]
[1755179289668,0.09159326,118430.0,118420.0,0.16897267]
[1755179289841,0.0769,118430.0,118420.0,0.16897267]
[1755179290273,0.006,118430.0,118420.0,0.17209267]
[1755179290672,0.006,118430.0,118420.0,8.228e-05]
[1755179290872,0.17487612,118430.0,118420.0,0.15744228]
[1755179291091,0.17487612,118430.0,118420.0,8.228e-05]
[1755179291301,0.17810612,118430.0,118420.0,8.228e-05]
[1755179291781,0.86672357,118430.0,118420.0,8.228e-05]
[1755179292058,0.53555514,118430.0,118420.0,8.228e-05]
[1755179292266,1.28439965,118430.0,118420.0,8.228e-05]
[1755179292437,0.16894745,118380.0,118370.0,0.03895018]
[1755179292870,0.2549007,118380.0,118370.0,0.20803533]
[1755179293080,0.16894513,118390.0,118370.0,0.20803533]
[1755179293294,0.82159964,118420.0,118390.0,0.16893318]
[1755179293494,0.16891891,118400.0,118390.0,0.16893318]
[1755179293903,0.16890626,118410.0,118390.0,0.16893318]
[1755179294110,0.42214289,118420.0,118400.0,0.16891891]
[1755179294337,0.002,118430.0,118420.0,0.16889039]
[1755179294750,0.002,118430.0,118420.0,0.17201039]
[1755179294961,0.0177943,118440.0,118430.0,0.16887612]
[1755179295187,0.18665617,118440.0,118420.0,0.33073039]
[1755179295389,0.0177943,118440.0,118430.0,0.16887612]
[1755179296497,0.03260042,118440.0,118430.0,0.16887612]
[1755179296704,0.0177943,118440.0,118430.0,0.16887612]
[1755179297366,0.0177943,118440.0,118430.0,0.17199612]
[1755179298475,0.0177943,118440.0,118430.0,1.33722343]
[1755179298682,0.0197943,118440.0,118430.0,1.33722343]
[1755179298885,0.0197943,118440.0,118430.0,0.68779892]
[1755179299738,0.0197943,118440.0,118430.0,1.37499475]
[1755179300367,0.0177943,118440.0,118430.0,1.37499475]
[1755179300803,0.0177943,118440.0,118430.0,1.37599475]
[1755179301021,1e-08,118440.0,118430.0,1.47652475]
[1755179301233,1e-08,118440.0,118430.0,0.84354926]
[1755179301453,1e-08,118440.0,118430.0,0.77579571]
[1755179301660,1e-08,118440.0,118430.0,1.42422022]
[1755179301912,1e-08,118440.0,118430.0,1.58690022]
[1755179302155,1e-08,118440.0,118430.0,0.75734669]
[1755179302381,1e-08,118440.0,118430.0,1.4047712]
[1755179302612,1e-08,118440.0,118430.0,0.82113669]
[1755179302849,1e-08,118440.0,118430.0,0.62004537]
[1755179303087,1e-08,118440.0,118430.0,0.78344537]
[1755179303361,1e-08,118440.0,118430.0,0.82143668]
[1755179303780,1e-08,118440.0,118430.0,0.83043668]
[1755179303991,1e-08,118440.0,118430.0,1.47986119]
[1755179304209,1e-08,118440.0,118430.0,1.47086119]
[1755179304460,1e-08,118440.0,118430.0,0.82143668]
[1755179304949,1e-08,118440.0,118430.0,0.82243668]
[1755179305654,1e-08,118440.0,118430.0,1.66375075]
[1755179305855,1e-08,118440.0,118430.0,0.89019023]
[1755179306076,1e-08,118440.0,118430.0,1.7315043]
[1755179306282,1e-08,118440.0,118430.0,0.89019023]
[1755179306494,1e-08,118440.0,118430.0,0.65903668]
[1755179306712,1e-08,118440.0,118430.0,0.82127668]
[1755179306917,1e-08,118440.0,118430.0,0.65803668]
[1755179307124,1e-08,118440.0,118430.0,0.19620212]
[1755179307339,0.17209188,118440.0,118430.0,0.030326]
[1755179307551,0.00323001,118440.0,118430.0,0.36084212]
[1755179307764,1e-08,118440.0,118430.0,0.35784212]
[1755179308188,1e-08,118440.0,118430.0,0.36084212]
[1755179308403,1e-08,118440.0,118430.0,0.35884212]
[1755179308626,1e-08,118440.0,118430.0,0.35784212]
[1755179308833,0.00200001,118440.0,118430.0,0.35784212]
[1755179309253,0.00200001,118440.0,118430.0,0.025326]
[1755179309254,1.45557822,118440.0,118430.0,0.025326]
[1755179309458,0.18632514,118430.0,118420.0,0.00012342]
[1755179309663,0.28473354,118430.0,118420.0,0.00012342]
[1755179309927,0.72738354,118430.0,118420.0,0.00012342]
[1755179310127,0.16891891,118400.0,118390.0,0.16348]
[1755179310352,0.18699406,118400.0,118390.0,0.025339]
[1755179310565,0.18699406,118400.0,118390.0,0.19427218]
[1755179310566,0.18276406,118400.0,118390.0,0.19427218]
[1755179310775,0.18276934,118400.0,118390.0,0.025339]
[1755179311014,0.60872259,118400.0,118390.0,0.025339]
[1755179311240,0.16894745,118380.0,118370.0,0.20325714]
[1755179311447,0.18463788,118380.0,118370.0,0.03909714]
[1755179311654,0.19785197,118380.0,118370.0,0.06443914]
[1755179312097,0.18216154,118380.0,118370.0,0.06443914]
[1755179312317,0.2838033,118380.0,118370.0,0.06443914]
[1755179312527,1.5203992,118380.0,118370.0,0.03909714]
[1755179312733,0.67908513,118380.0,118370.0,0.03909714]
[1755179313359,0.77850513,118380.0,118370.0,0.03909714]
[1755179313810,0.68008513,118380.0,118370.0,0.03909714]
[1755179314017,0.31940611,118380.0,118370.0,0.03909714]
[1755179314226,0.19885005,118380.0,118370.0,0.03909714]
[1755179314441,0.18316154,118380.0,118370.0,0.03909714]
[1755179314650,0.26588479,118380.0,118370.0,0.03909714]
[1755179314862,0.28556381,118380.0,118370.0,0.03909714]
[1755179315286,0.30940295,118380.0,118370.0,0.03909714]
[1755179315492,0.27111479,118380.0,118370.0,0.03909714]
[1755179315712,1.46687788,118380.0,118370.0,0.03909714]
[1755179315926,0.62556381,118380.0,118370.0,0.03909714]
[1755179316559,0.28556381,118380.0,118370.0,0.03909714]
[1755179317192,0.18316154,118380.0,118370.0,0.20805887]
[1755179317606,0.14421136,118380.0,118370.0,0.00014696]
[1755179318253,0.14421136,118380.0,118370.0,0.16910869]
[1755179318462,0.16894745,118380.0,118370.0,0.16910869]
[1755179318890,0.01353483,118390.0,118380.0,0.16894657]
[1755179319097,0.17552485,118400.0,118370.0,0.34755677]
[1755179319308,0.16893332,118390.0,118370.0,0.00859504]
[1755179319520,0.16894745,118380.0,118370.0,0.00014696]
[1755179319732,0.3532596,118400.0,118370.0,0.16910869]
[1755179319951,0.4429,118410.0,118400.0,0.16891891]
[1755179320620,0.34330992,118430.0,118410.0,0.16890465]
[1755179320829,0.08272325,118420.0,118410.0,0.16890465]
[1755179321084,1e-08,118440.0,118420.0,0.16889039]
[1755179321334,1e-08,118440.0,118430.0,0.16887612]
[1755179321566,1e-08,118440.0,118430.0,0.17195612]
[1755179322040,1e-08,118440.0,118430.0,0.17210308]
[1755179322528,0.16886188,118440.0,118430.0,0.00014696]
[1755179322777,0.25530846,118440.0,118430.0,0.00014696]
[1755179322988,0.25258512,118440.0,118430.0,0.16902308]
[1755179323204,0.25258512,118440.0,118430.0,0.00014696]
[1755179323413,0.25573512,118440.0,118430.0,0.00014696]
[1755179323865,0.25473512,118440.0,118430.0,0.00014696]
[1755179324094,0.25158512,118440.0,118430.0,0.00014696]
[1755179324290,0.27218414,118440.0,118430.0,0.00114696]
[1755179324546,0.27218414,118440.0,118430.0,0.00014696]
[1755179324750,0.26903414,118440.0,118430.0,0.00014696]
[1755179324971,0.27418414,118440.0,118430.0,0.00014696]
[1755179325825,0.61418414,118440.0,118430.0,0.00014696]
[1755179326045,0.72937414,118440.0,118430.0,0.00014696]
[1755179326256,0.16893318,118390.0,118380.0,0.06775355]
[1755179326464,0.1863822,118390.0,118380.0,0.06783577]
[1755179326715,0.26910545,118390.0,118380.0,0.09317577]
[1755179326918,0.26910545,118390.0,118380.0,0.02542222]
[1755179327362,0.26910545,118390.0,118380.0,8.222e-05]
[1755179327576,0.26910545,118390.0,118380.0,0.00108222]
[1755179328002,0.26910545,118390.0,118380.0,8.222e-05]
[1755179328216,0.08272325,118390.0,118380.0,8.222e-05]
[1755179328433,0.16893318,118390.0,118380.0,8.222e-05]
[1755179328919,0.25165643,118390.0,118380.0,8.222e-05]
[1755179329767,0.25165643,118390.0,118380.0,0.16902967]
[1755179329989,0.16893127,118400.0,118380.0,0.16902967]
[1755179330200,0.16893318,118390.0,118380.0,0.16902967]
[1755179330612,0.01350015,118390.0,118380.0,0.16902967]
[1755179330821,0.26910354,118400.0,118390.0,0.16893318]
[1755179331252,0.08272325,118400.0,118390.0,0.16893318]
[1755179331480,0.03868439,118410.0,118400.0,0.16891891]
[1755179331704,0.26907692,118410.0,118390.0,0.17201318]
[1755179331918,0.25164216,118400.0,118380.0,0.17747684]
[1755179332142,0.16893318,118390.0,118380.0,0.16832222]
[1755179333016,0.16893318,118390.0,118380.0,8.222e-05]
[1755179333017,0.26910545,118390.0,118380.0,8.222e-05]
[1755179333225,0.27225545,118390.0,118380.0,8.222e-05]
[1755179333654,0.27010545,118390.0,118380.0,8.222e-05]
[1755179334303,0.26910545,118390.0,118380.0,8.222e-05]
[1755179334519,0.17206891,118400.0,118380.0,0.16902967]
[1755179334520,0.16891891,118400.0,118380.0,0.16902967]
[1755179334733,0.001,118390.0,118380.0,0.16902967]
[1755179334878,0.003,118390.0,118380.0,0.33706967]
[1755179335248,0.003,118390.0,118380.0,0.85563292]
[1755179335666,0.16887627,118430.0,118410.0,0.16889903]
[1755179335866,0.25159952,118430.0,118410.0,0.33677903]
[1755179336080,0.25159952,118430.0,118410.0,0.33985903]
[1755179336291,0.26503554,118430.0,118410.0,0.33985903]
[1755179336731,0.26503554,118430.0,118420.0,0.16889039]
[1755179336936,0.01343602,118430.0,118420.0,0.16889039]
[1755179337131,0.17730496,118440.0,118420.0,0.17197039]
[1755179337386,0.27747723,118440.0,118430.0,0.16887612]
[1755179337563,0.26903414,118440.0,118430.0,0.16887612]
[1755179337890,0.26903414,118440.0,118430.0,8.222e-05]
[1755179339215,0.27103414,118440.0,118430.0,8.222e-05]
[1755179339466,0.002,118440.0,118430.0,0.17414929]
[1755179339688,0.002,118440.0,118430.0,0.25476159]
[1755179340340,0.002,118440.0,118430.0,0.17203834]
[1755179340534,0.23660118,118450.0,118430.0,0.34007834]
[1755179340535,0.25007515,118450.0,118430.0,0.34007834]
[1755179340750,0.25007513,118450.0,118440.0,0.16886187]
[1755179341328,0.25007513,118450.0,118430.0,0.34007834]
[1755179341824,0.25007513,118450.0,118440.0,0.16886187]
[1755179341825,0.08122752,118450.0,118440.0,0.16886187]
[1755179342043,0.08122752,118450.0,118440.0,0.17194187]
[1755179342226,0.08222752,118450.0,118440.0,0.17194187]
[1755179342464,0.25007513,118450.0,118440.0,0.025328]
[1755179342685,0.33279838,118450.0,118440.0,0.025328]
[1755179342933,0.33279838,118450.0,118440.0,0.19418987]
[1755179343152,0.06775355,118450.0,118440.0,0.19726987]
[1755179343370,0.17727505,118460.0,118440.0,0.19726987]
[1755179343585,0.2599983,118460.0,118440.0,0.19726987]
[1755179343803,0.26251128,118470.0,118450.0,0.33952761]
[1755179344075,0.26251128,118470.0,118440.0,0.20263296]
[1755179344076,0.16883336,118460.0,118440.0,0.20263296]
[1755179344285,0.32778551,118470.0,118450.0,0.16884761]
[1755179344517,0.16883336,118460.0,118450.0,0.16884761]
[1755179344751,0.16983336,118460.0,118450.0,0.16884761]
[1755179345421,0.16884761,118450.0,118440.0,0.025328]
[1755179345636,0.16884761,118450.0,118440.0,0.36170987]
[1755179345820,0.08272325,118460.0,118450.0,0.16884761]
[1755179346056,0.001,118460.0,118450.0,0.16884761]
[1755179346489,0.001,118460.0,118450.0,0.17182761]
[1755179346721,0.001,118460.0,118450.0,0.16884761]
[1755179347560,0.001,118460.0,118450.0,0.17182761]
[1755179348025,0.26553105,118470.0,118450.0,0.17182761]
[1755179348217,0.3482543,118470.0,118460.0,0.16883336]
[1755179348425,0.3482543,118470.0,118450.0,0.17182761]
[1755179348984,0.3482543,118470.0,118460.0,0.33559336]
[1755179349360,0.3482543,118470.0,118460.0,0.16676]
[1755179349559,0.3492543,118470.0,118460.0,0.16676]
[1755179349957,0.16883336,118460.0,118450.0,0.33810761]
[1755179350433,0.3492543,118470.0,118450.0,0.33810761]
[1755179350844,0.3492543,118470.0,118460.0,0.16883336]
[1755179351013,0.3482543,118470.0,118450.0,0.33810761]
[1755179351217,0.35610607,118470.0,118450.0,0.33810761]
[1755179351413,0.16884761,118450.0,118440.0,0.025328]
[1755179351643,0.17669938,118450.0,118440.0,0.191408]
[1755179352017,0.17669938,118450.0,118430.0,0.33495756]
[1755179352018,0.16886187,118440.0,118430.0,0.33495756]
[1755179352211,0.2253768,118450.0,118440.0,0.16886187]
[1755179352425,0.0749,118450.0,118440.0,0.17184187]
[1755179353004,0.24374761,118450.0,118440.0,0.16588]
[1755179353211,0.24374761,118450.0,118440.0,0.33474187]
[1755179353416,0.24374761,118450.0,118440.0,0.33772187]
[1755179353772,0.24374761,118450.0,118440.0,0.00298]
[1755179353990,0.24374761,118450.0,118440.0,0.17184187]
[1755179354417,0.24474761,118450.0,118440.0,0.17184187]
[1755179354617,0.0759,118450.0,118440.0,0.17184187]
[1755179354865,0.24474761,118450.0,118440.0,0.17184187]
[1755179355068,0.0759,118450.0,118440.0,0.17184187]
[1755179355276,0.001,118450.0,118440.0,0.17184187]
[1755179355679,0.16984761,118450.0,118440.0,0.17184187]
[1755179355823,0.001,118450.0,118440.0,0.17184187]
[1755179356024,0.16984761,118450.0,118440.0,0.17184187]
[1755179356227,0.16984761,118450.0,118430.0,0.36044656]
[1755179356424,0.23760116,118450.0,118430.0,0.19726656]
[1755179356651,0.16886187,118440.0,118430.0,0.35996734]
[1755179356863,0.32032441,118450.0,118430.0,0.36294734]
[1755179357073,0.001,118450.0,118440.0,0.17184187]
[1755179357483,0.22365565,118470.0,118450.0,0.16884551]
[1755179357701,0.37413245,118470.0,118460.0,0.16624]
[1755179358117,0.16884285,118460.0,118450.0,0.1664]
[1755179358578,0.2515661,118460.0,118440.0,0.33518187]
[1755179358821,0.26726689,118460.0,118440.0,0.33518187]
[1755179358967,0.26726689,118460.0,118450.0,0.16884761]
[1755179359181,0.2515661,118460.0,118450.0,0.16884761]
[1755179359397,0.08272325,118460.0,118450.0,0.17182761]
[1755179359620,0.22366359,118470.0,118450.0,0.17182761]
[1755179359786,0.30638684,118470.0,118450.0,0.17182761]
[1755179360276,0.16883336,118460.0,118450.0,0.16884761]
[1755179360508,0.23658691,118460.0,118440.0,0.17730496]
[1755179360744,0.25157086,118450.0,118430.0,0.18038214]
[1755179361117,0.16886187,118440.0,118430.0,0.17740214]
[1755179361319,0.25157086,118450.0,118430.0,0.34400214]
[1755179361525,0.25157086,118450.0,118440.0,0.16886187]
[1755179361526,0.08272325,118450.0,118440.0,0.16886187]
[1755179362159,0.08347328,118460.0,118450.0,0.16884761]
[1755179362363,0.1504768,118460.0,118450.0,0.16884761]
[1755179362569,0.1504768,118460.0,118450.0,0.17182761]
[1755179362775,0.20623193,118470.0,118460.0,0.16883336]
[1755179362976,0.11169464,118470.0,118460.0,0.33563336]
[1755179363176,0.29796277,118470.0,118460.0,0.1668]
[1755179363609,0.16884761,118450.0,118440.0,0.17730496]
[1755179363812,0.16884761,118450.0,118440.0,0.34394496]
[1755179364411,0.16884761,118450.0,118440.0,0.16664]
[1755179364617,0.25157086,118450.0,118430.0,0.34368214]
[1755179364817,0.16886187,118440.0,118430.0,0.34368214]
[1755179365028,0.25455086,118450.0,118430.0,0.33515834]
[1755179365215,0.25157086,118450.0,118430.0,0.33515834]
[1755179365642,0.28477949,118450.0,118440.0,0.16886187]
[1755179365860,0.28577949,118450.0,118440.0,0.16886187]
[1755179366076,0.28477949,118450.0,118430.0,0.33515834]
[1755179367152,0.28477949,118450.0,118440.0,0.16886187]
[1755179367556,0.28077949,118450.0,118440.0,0.16886187]
[1755179367752,0.28077949,118450.0,118430.0,0.33813834]
[1755179367984,0.28077949,118450.0,118430.0,8.222e-05]
[1755179367985,0.68964187,118440.0,118430.0,8.222e-05]
[1755179368170,0.7198705,118440.0,118430.0,8.222e-05]
[1755179368830,0.53355961,118440.0,118430.0,0.16895834]
[1755179369042,0.53355961,118440.0,118430.0,0.17193834]
[1755179369475,0.53455961,118440.0,118430.0,0.17193834]
[1755179369684,0.5188,118440.0,118430.0,0.17193834]
[1755179370126,0.5188,118440.0,118430.0,8.222e-05]
[1755179370127,0.18564833,118440.0,118430.0,8.222e-05]
[1755179370356,0.45968646,118440.0,118430.0,0.33651834]
[1755179370597,0.01678817,118440.0,118430.0,0.33651834]
[1755179370821,0.01578817,118440.0,118430.0,0.33949834]
[1755179371261,0.01578817,118440.0,118430.0,0.34049834]
[1755179371475,0.01578817,118440.0,118430.0,0.34265834]
[1755179371679,0.01678817,118440.0,118430.0,0.34265834]
[1755179371943,0.18565004,118440.0,118430.0,0.33967834]
[1755179372376,0.01678817,118440.0,118430.0,0.34265834]
[1755179372583,0.01578817,118440.0,118430.0,0.34165834]
[1755179372794,0.01578817,118440.0,118430.0,0.99044054]
[1755179373000,0.16883336,118460.0,118450.0,0.16884761]
[1755179373221,0.01579971,118460.0,118450.0,0.17182761]
[1755179373643,0.33510987,118460.0,118440.0,0.17729249]
[1755179373852,0.16886187,118440.0,118430.0,8.222e-05]
[1755179374063,0.18466158,118440.0,118430.0,8.222e-05]
[1755179374498,0.18466158,118440.0,118430.0,0.16995834]
[1755179374706,0.18466158,118440.0,118430.0,0.00108222]
[1755179374911,0.33513838,118440.0,118430.0,0.00108222]
[1755179375118,0.3525874,118440.0,118430.0,8.222e-05]
[1755179375316,0.28483385,118440.0,118430.0,8.222e-05]
[1755179375517,0.28583385,118440.0,118430.0,8.222e-05]
[1755179375728,0.11697198,118440.0,118430.0,0.16895834]
[1755179376318,0.10117227,118440.0,118430.0,0.16895834]
[1755179376529,0.001,118440.0,118430.0,0.17192834]
[1755179376740,0.16986187,118440.0,118430.0,0.17192834]
[1755179376959,0.16986187,118440.0,118430.0,0.16895834]
[1755179377152,0.001,118440.0,118430.0,0.17192834]
[1755179377769,0.18629714,118450.0,118430.0,0.17192834]
[1755179377969,0.28482027,118450.0,118430.0,0.16895834]
[1755179378183,0.28482027,118450.0,118440.0,0.16886187]
[1755179378406,0.26902039,118450.0,118430.0,0.17192834]
[1755179378816,0.26902039,118450.0,118430.0,0.16895834]
[1755179378973,0.26902039,118450.0,118440.0,0.16886187]
[1755179379179,0.10017227,118450.0,118440.0,0.16886187]
[1755179379612,0.08272325,118450.0,118440.0,0.16886187]
[1755179379817,0.09852481,118450.0,118440.0,0.16886187]
[1755179380015,0.26737242,118450.0,118440.0,0.16886187]
[1755179380401,0.26737242,118450.0,118430.0,0.17192834]
[1755179380650,0.26737242,118450.0,118430.0,0.16895834]
[1755179380825,0.23661542,118440.0,118430.0,0.16895834]
[1755179381029,0.23661542,118440.0,118430.0,0.33935834]
[1755179381427,0.23411542,118440.0,118430.0,0.33935834]
[1755179382016,0.06525355,118440.0,118430.0,0.33935834]
[1755179382193,0.23411542,118440.0,118430.0,0.33935834]
[1755179382607,0.06525355,118440.0,118430.0,0.33935834]
[1755179383031,0.23411542,118440.0,118430.0,0.33935834]
[1755179383447,0.31683867,118440.0,118430.0,0.33935834]
[1755179383861,0.08472325,118440.0,118430.0,0.33883834]
[1755179384269,0.002,118440.0,118430.0,0.34180834]
[1755179385099,0.01579866,118450.0,118440.0,0.16886187]
[1755179385310,0.09852191,118450.0,118440.0,0.17183187]
[1755179386449,0.08272325,118450.0,118440.0,0.17183187]
[1755179387093,0.09069866,118460.0,118450.0,0.16884761]
[1755179387396,0.10017227,118460.0,118450.0,0.33784761]
[1755179387540,0.08272325,118460.0,118450.0,0.33784761]
[1755179387739,0.08272325,118460.0,118450.0,0.34081761]
[1755179388057,0.02904396,118470.0,118450.0,0.34081761]
[1755179388258,0.12921366,118470.0,118460.0,0.16883336]
[1755179388428,0.11341757,118470.0,118460.0,0.16883336]
[1755179388629,0.28223668,118470.0,118460.0,0.16883336]
[1755179388830,0.29803277,118470.0,118450.0,0.17181761]
[1755179389087,0.29803277,118470.0,118460.0,0.16848]
[1755179389494,0.29803277,118470.0,118460.0,0.33731336]
[1755179390328,0.28223668,118470.0,118460.0,0.33731336]
[1755179390533,0.09596855,118470.0,118460.0,0.33731336]
[1755179390962,0.09796855,118470.0,118460.0,0.33731336]
[1755179393383,0.26678766,118470.0,118460.0,0.16796]
[1755179393578,0.16883336,118460.0,118440.0,0.17730496]
[1755179393784,0.25155661,118460.0,118430.0,0.18037214]
[1755179393993,0.25155661,118460.0,118430.0,0.16740222]
[1755179393994,0.16886187,118440.0,118430.0,0.16740222]
[1755179394194,0.25158512,118440.0,118430.0,0.33627834]
[1755179394402,0.08272325,118440.0,118430.0,0.33627834]
[1755179394804,0.08272325,118440.0,118430.0,0.33924834]
[1755179395767,0.08272325,118440.0,118430.0,0.34024834]
[1755179396607,0.08272325,118440.0,118430.0,0.34124834]
[1755179396818,0.25158512,118440.0,118430.0,0.33827834]
[1755179397027,0.08272325,118440.0,118430.0,0.33827834]
[1755179397244,0.08272325,118440.0,118430.0,0.33727834]
[1755179397449,0.08272325,118440.0,118430.0,0.34024834]
[1755179397676,0.19050536,118470.0,118440.0,0.16883772]
[1755179397896,0.25155661,118460.0,118450.0,0.16736]
[1755179398566,0.25155661,118460.0,118450.0,0.33620761]
[1755179399172,0.26900563,118460.0,118450.0,0.16736]
[1755179399839,0.16884761,118450.0,118440.0,0.34520081]
[1755179400009,0.08272325,118450.0,118440.0,0.34520081]
[1755179400861,0.25157086,118450.0,118440.0,0.34520081]
[1755179401072,0.08272325,118450.0,118440.0,0.34520081]
[1755179401296,0.08372325,118450.0,118440.0,0.34520081]
[1755179401726,0.25257086,118450.0,118440.0,0.34520081]
[1755179401942,0.70411089,118440.0,118430.0,0.16740222]
[1755179402183,1.42807634,118440.0,118430.0,8.222e-05]
[1755179402396,0.77929414,118440.0,118430.0,8.222e-05]
[1755179402608,1.42807634,118440.0,118430.0,8.222e-05]
[1755179403568,0.59158512,118440.0,118430.0,8.222e-05]
[1755179403791,1.41054732,118440.0,118430.0,8.222e-05]
[1755179404116,1.42799634,118440.0,118430.0,8.222e-05]
[1755179404299,1.42999634,118440.0,118430.0,8.222e-05]
[1755179404840,2.22143854,118440.0,118430.0,8.222e-05]
[1755179405253,0.92387414,118440.0,118430.0,8.222e-05]
[1755179405475,0.00844737,118380.0,118360.0,0.00297]
[1755179405688,0.168976,118360.0,118350.0,0.02534]
[1755179405900,1.26095047,118360.0,118350.0,0.02534]
[1755179406117,1.26095047,118360.0,118350.0,0.00048052]
[1755179406526,0.61216827,118360.0,118350.0,0.00048052]
[1755179406702,1.26095047,118360.0,118350.0,0.00048052]
[1755179406907,0.61216827,118360.0,118350.0,0.00048052]
[1755179407119,1.26095047,118360.0,118350.0,0.00048052]
[1755179407305,1.26295047,118360.0,118350.0,0.00048052]
[1755179407508,0.61416827,118360.0,118350.0,0.00048052]
[1755179407659,1.26295047,118360.0,118350.0,0.00048052]
[1755179408531,1.28995047,118360.0,118350.0,0.00048052]
[1755179408710,1.26495047,118360.0,118350.0,0.00048052]
[1755179408923,0.6386832,118360.0,118350.0,0.00048052]
[1755179409074,0.8058232,118360.0,118350.0,0.00048052]
[1755179409577,1.5088354,118360.0,118350.0,1e-08]
[1755179409973,1.5092754,118360.0,118350.0,1e-08]
[1755179410420,1.4842754,118360.0,118350.0,1e-08]
[1755179410660,1.3136754,118360.0,118350.0,1e-08]
[1755179410821,1.2886754,118360.0,118350.0,1e-08]
[1755179411040,0.8073032,118360.0,118350.0,1e-08]
[1755179411381,0.8105332,118360.0,118350.0,1e-08]
[1755179411583,0.898695,118360.0,118350.0,1e-08]
[1755179411790,1.5224772,118360.0,118350.0,1e-08]
[1755179411994,1.5474372,118360.0,118350.0,1e-08]
[1755179412200,1.5224372,118360.0,118350.0,1e-08]
[1755179412411,1.4942472,118360.0,118350.0,1e-08]
[1755179412621,1.5192472,118360.0,118350.0,1e-08]
[1755179413042,1.4974772,118360.0,118350.0,1e-08]
[1755179413252,0.674825,118360.0,118350.0,1e-08]
[1755179413433,0.82793598,118360.0,118350.0,0.00317001]
[1755179413661,1.47671818,118360.0,118350.0,1e-08]
[1755179414196,0.674825,118360.0,118350.0,1e-08]
[1755179414400,0.674825,118360.0,118350.0,0.00317001]
[1755179414401,0.14539998,118360.0,118350.0,0.00317001]
[1755179414605,0.14539998,118360.0,118350.0,0.17216029]
[1755179414833,0.12188505,118360.0,118350.0,0.17216029]
[1755179415006,0.08472325,118360.0,118350.0,0.17216029]
[1755179415189,0.31730691,118360.0,118350.0,0.17216029]
[1755179415383,0.14733091,118360.0,118350.0,0.17216029]
[1755179415589,0.31630691,118360.0,118350.0,0.00317001]
[1755179415785,0.31630691,118360.0,118350.0,0.17216029]
[1755179416032,1.37066817,118360.0,118350.0,1e-08]
[1755179416243,1.38811719,118360.0,118330.0,0.00912095]
[1755179416476,0.16900456,118340.0,118330.0,0.00912095]
[1755179416689,0.16900456,118340.0,118330.0,0.00067001]
[1755179417098,0.16900456,118340.0,118330.0,0.16968885]
[1755179417370,0.2517258,118350.0,118330.0,0.16968885]
[1755179417538,0.42192781,118340.0,118330.0,0.02602101]
[1755179418096,0.42092781,118340.0,118330.0,0.02602101]
[1755179418500,0.42092781,118340.0,118330.0,0.19503985]
[1755179418721,0.25172781,118340.0,118330.0,0.19603985]
[1755179419069,0.08272325,118340.0,118330.0,0.19503985]
[1755179419227,0.25172781,118340.0,118330.0,0.02602101]
[1755179419431,0.59896226,118360.0,118350.0,0.16899028]
[1755179419432,0.03935989,118360.0,118350.0,0.16899028]
[1755179419632,0.03935989,118360.0,118350.0,0.17216028]
[1755179419633,0.12208314,118360.0,118350.0,0.17216028]
[1755179420485,0.29105914,118360.0,118350.0,0.17216028]
[1755179421089,0.16899028,118350.0,118340.0,0.1689963]
[1755179421257,0.16899028,118350.0,118340.0,0.1721663]
[1755179421609,0.25171353,118350.0,118340.0,0.16900456]
[1755179422146,0.25171353,118350.0,118330.0,0.20599078]
[1755179422362,0.26917683,118340.0,118330.0,0.025351]
[1755179422590,1.15515258,118340.0,118330.0,0.025351]
[1755179423011,0.50637038,118340.0,118330.0,0.025351]
[1755179423216,0.50960038,118340.0,118330.0,0.025351]
[1755179423425,1.15838258,118340.0,118330.0,0.025351]
[1755179424694,1.49838258,118340.0,118330.0,0.025351]
[1755179425120,0.50801884,118330.0,118320.0,0.0004]
[1755179425330,1.28114974,118330.0,118320.0,0.0004]
[1755179425540,0.64981656,118330.0,118320.0,0.025751]
[1755179425743,0.1211187,118330.0,118320.0,0.028921]
[1755179425947,0.29013754,118330.0,118320.0,0.028921]
[1755179426148,0.30758656,118330.0,118320.0,0.025751]
[1755179426373,1.30159876,118330.0,118320.0,0.025751]
[1755179427499,1.46983876,118330.0,118320.0,0.025751]
[1755179427712,0.82105656,118330.0,118320.0,0.0004]
[1755179427912,0.81774656,118330.0,118320.0,0.02576]
[1755179428161,0.64958656,118330.0,118320.0,0.02576]
[1755179428357,0.46029754,118330.0,118320.0,0.19796313]
[1755179428565,0.2911187,118330.0,118320.0,0.19796313]
[1755179429171,0.1241187,118330.0,118320.0,0.19796313]
[1755179429376,0.08572325,118330.0,118320.0,0.19796313]
[1755179429642,0.003,118330.0,118320.0,0.19796313]
[1755179430592,0.002,118330.0,118320.0,0.19796313]
[1755179431660,0.01575681,118330.0,118320.0,0.84674533]
[1755179431864,0.01575681,118330.0,118320.0,1.27324533]
[1755179432403,0.01575681,118330.0,118320.0,0.62446313]
[1755179433044,0.01575681,118330.0,118320.0,0.53796313]